[Event "Titled Tuesday Blitz December 13 Late 2022"]
[White "Sivakumar, Shaaketh"]
[Black "Torres Boch, Jose Francisco"]
[WhiteFideId "30940176"]
[BlackFideId "2278383"]
[WhiteElo "2174"]
[BlackElo "2073"]
[Result "0-1"]
[Round "07"]
[TimeControl "180+1"]
[Date "2022.12.14"]
[WhiteClock "0:00:07"]
[BlackClock "0:00:14"]

1. d4 {[%clk 0:03:00]}  Nf6 {[%clk 0:02:59]} 2. c4 {[%clk 0:02:59]}  e6 {[%clk 0:02:59]} 3. g3 {[%clk 0:02:58]}  Bb4+ {[%clk 0:02:58]} 4. Bd2 {[%clk 0:02:57]}  Be7 {[%clk 0:02:59]} 5. Bg2 {[%clk 0:02:55]}  d5 {[%clk 0:03:00]} 6. Nf3 {[%clk 0:02:52]}  O-O {[%clk 0:03:00]} 7. O-O {[%clk 0:02:50]}  c6 {[%clk 0:03:00]} 8. Qc2 {[%clk 0:02:48]}  Nbd7 {[%clk 0:03:00]} 9. Bf4 {[%clk 0:02:48]}  b6 {[%clk 0:03:00]} 10. Rd1 {[%clk 0:02:38]}  Ba6 {[%clk 0:02:59]} 11. Ne5 {[%clk 0:02:34]}  Nxe5 {[%clk 0:02:51]} 12. dxe5 {[%clk 0:02:33]}  Nd7 {[%clk 0:02:47]} 13. cxd5 {[%clk 0:02:29]}  cxd5 {[%clk 0:02:45]} 14. e4 {[%clk 0:02:27]}  Rc8 {[%clk 0:02:43]} 15. Qd2 {[%clk 0:02:08]}  g5 {[%clk 0:02:42]} 16. Be3 {[%clk 0:01:43]}  Nxe5 {[%clk 0:02:41]} 17. exd5 {[%clk 0:01:43]}  Nc4 {[%clk 0:02:35]} 18. Qe2 {[%clk 0:01:34]}  e5 {[%clk 0:01:58]} 19. Bc1 {[%clk 0:01:28]}  b5 {[%clk 0:01:53]} 20. b3 {[%clk 0:01:22]}  Nd6 {[%clk 0:01:53]} 21. Bb2 {[%clk 0:01:20]}  Bf6 {[%clk 0:01:52]} 22. Nc3 {[%clk 0:01:09]}  b4 {[%clk 0:01:45]} 23. Qxa6 {[%clk 0:01:09]}  bxc3 {[%clk 0:01:45]} 24. Ba3 {[%clk 0:01:09]}  Be7 {[%clk 0:01:37]} 25. Re1 {[%clk 0:00:59]}  f6 {[%clk 0:01:19]} 26. Bh3 {[%clk 0:00:57]}  Rb8 {[%clk 0:01:18]} 27. Be6+ {[%clk 0:00:57]}  Kg7 {[%clk 0:01:15]} 28. Rac1 {[%clk 0:00:53]}  Qc7 {[%clk 0:01:02]} 29. Red1 {[%clk 0:00:37]}  Rfe8 {[%clk 0:00:48]} 30. Rd3 {[%clk 0:00:36]}  Nb5 {[%clk 0:00:43]} 31. Bxe7 {[%clk 0:00:27]}  Qxe7 {[%clk 0:00:44]} 32. a4 {[%clk 0:00:25]}  Nd4 {[%clk 0:00:44]} 33. Rdxc3 {[%clk 0:00:25]}  Nxe6 {[%clk 0:00:43]} 34. dxe6 {[%clk 0:00:25]}  Qxe6 {[%clk 0:00:42]} 35. Rc7+ {[%clk 0:00:25]}  Kg6 {[%clk 0:00:40]} 36. Qxa7 {[%clk 0:00:25]}  Rxb3 {[%clk 0:00:29]} 37. Rg7+ {[%clk 0:00:23]}  Kf5 {[%clk 0:00:29]} 38. Rxh7 {[%clk 0:00:23]}  Rc8 {[%clk 0:00:25]} 39. Rxc8 {[%clk 0:00:17]}  Qxc8 {[%clk 0:00:24]} 40. Qd7+ {[%clk 0:00:11]}  Qxd7 {[%clk 0:00:24]} 41. Rxd7 {[%clk 0:00:10]}  Ra3 {[%clk 0:00:24]} 42. Ra7 {[%clk 0:00:08]}  Kg4 {[%clk 0:00:24]} 43. Kg2 {[%clk 0:00:08]}  e4 {[%clk 0:00:24]} 44. h3+ {[%clk 0:00:08]}  Kf5 {[%clk 0:00:24]} 45. Ra6 {[%clk 0:00:06]}  Ra2 {[%clk 0:00:24]} 46. g4+ {[%clk 0:00:06]}  Ke5 {[%clk 0:00:21]} 47. Ra5+ {[%clk 0:00:07]}  Ke6 {[%clk 0:00:19]} 48. Kg3 {[%clk 0:00:06]}  Ra3+ {[%clk 0:00:18]} 49. Kg2 {[%clk 0:00:07]}  Ra2 {[%clk 0:00:18]} 50. Ra7 {[%clk 0:00:08]}  e3 {[%clk 0:00:17]} 51. Kg3 {[%clk 0:00:08]}  e2 {[%clk 0:00:16]} 52. Ra8 {[%clk 0:00:07]}  Ke7 {[%clk 0:00:15]} 53. Ra7+ {[%clk 0:00:08]}  Kf8 {[%clk 0:00:14]} 54. Ra8+ {[%clk 0:00:08]}  Kf7 {[%clk 0:00:14]} 55. Ra7+ {[%clk 0:00:09]}  Kf8 {[%clk 0:00:14]} 56. Ra8+ {[%clk 0:00:09]}  Ke7 {[%clk 0:00:14]} 57. Ra7+ {[%clk 0:00:09]}  Kd6 {[%clk 0:00:14]} 58. Ra6+ {[%clk 0:00:09]}  Kd5 {[%clk 0:00:14]} 59. Ra5+ {[%clk 0:00:08]}  Kd4 {[%clk 0:00:14]} 60. Ra8 {[%clk 0:00:07]}  e1=Q {[%clk 0:00:14]} 0-1


[Site "https://www.chess.com"]

[Event "Titled Tuesday Blitz December 13 Late 2022"]
[White "Sjugirov, Sanan"]
[Black "Fedoseev, Vladimir"]
[WhiteFideId "4189302"]
[BlackFideId "24130737"]
[WhiteElo "2613"]
[BlackElo "2733"]
[Result "1-0"]
[Round "07"]
[TimeControl "180+1"]
[Date "2022.12.13"]
[WhiteClock "0:00:06"]
[BlackClock "0:00:12"]

1. d4 {[%clk 0:03:00]}  Nf6 {[%clk 0:02:28]} 2. c4 {[%clk 0:02:58]}  e6 {[%clk 0:02:28]} 3. Nf3 {[%clk 0:02:56]}  d5 {[%clk 0:02:28]} 4. g3 {[%clk 0:02:57]}  Be7 {[%clk 0:02:28]} 5. Bg2 {[%clk 0:02:57]}  O-O {[%clk 0:02:29]} 6. O-O {[%clk 0:02:57]}  Nbd7 {[%clk 0:02:28]} 7. Qc2 {[%clk 0:02:46]}  c6 {[%clk 0:02:28]} 8. Bf4 {[%clk 0:02:43]}  b6 {[%clk 0:02:28]} 9. Rd1 {[%clk 0:02:42]}  Ba6 {[%clk 0:02:27]} 10. Nbd2 {[%clk 0:02:42]}  Bb7 {[%clk 0:02:24]} 11. Rac1 {[%clk 0:02:38]}  Rc8 {[%clk 0:02:23]} 12. e4 {[%clk 0:02:32]}  a5 {[%clk 0:02:18]} 13. e5 {[%clk 0:02:23]}  Ne8 {[%clk 0:02:18]} 14. cxd5 {[%clk 0:02:17]}  cxd5 {[%clk 0:02:07]} 15. Qa4 {[%clk 0:02:05]}  Nc7 {[%clk 0:02:06]} 16. Bf1 {[%clk 0:02:03]}  Ra8 {[%clk 0:01:45]} 17. h4 {[%clk 0:01:56]}  b5 {[%clk 0:01:42]} 18. Qc2 {[%clk 0:01:56]}  Rc8 {[%clk 0:01:40]} 19. Ng5 {[%clk 0:01:50]}  g6 {[%clk 0:01:40]} 20. Ngf3 {[%clk 0:01:42]}  Nb6 {[%clk 0:01:37]} 21. Nb3 {[%clk 0:01:19]}  Na6 {[%clk 0:01:34]} 22. Qb1 {[%clk 0:01:17]}  Nc4 {[%clk 0:01:34]} 23. Bg5 {[%clk 0:01:10]}  Bxg5 {[%clk 0:01:30]} 24. hxg5 {[%clk 0:01:08]}  a4 {[%clk 0:01:30]} 25. Nc5 {[%clk 0:00:54]}  Nxc5 {[%clk 0:01:24]} 26. dxc5 {[%clk 0:00:55]}  Rxc5 {[%clk 0:01:17]} 27. b3 {[%clk 0:00:55]}  axb3 {[%clk 0:01:12]} 28. axb3 {[%clk 0:00:56]}  Na3 {[%clk 0:01:12]} 29. Qb2 {[%clk 0:00:54]}  Rxc1 {[%clk 0:01:12]} 30. Qxc1 {[%clk 0:00:52]}  Qe7 {[%clk 0:00:58]} 31. Nh2 {[%clk 0:00:30]}  Rc8 {[%clk 0:00:49]} 32. Qf4 {[%clk 0:00:30]}  Kg7 {[%clk 0:00:28]} 33. Ng4 {[%clk 0:00:29]}  b4 {[%clk 0:00:29]} 34. Nf6 {[%clk 0:00:27]}  Rh8 {[%clk 0:00:27]} 35. Qh4 {[%clk 0:00:18]}  h5 {[%clk 0:00:27]} 36. gxh6+ {[%clk 0:00:18]}  Rxh6 {[%clk 0:00:26]} 37. Qxh6+ {[%clk 0:00:18]}  Kxh6 {[%clk 0:00:17]} 38. Ng8+ {[%clk 0:00:18]}  Kg7 {[%clk 0:00:16]} 39. Nxe7 {[%clk 0:00:18]}  Kf8 {[%clk 0:00:15]} 40. Nxg6+ {[%clk 0:00:16]}  fxg6 {[%clk 0:00:15]} 41. Bd3 {[%clk 0:00:14]}  d4 {[%clk 0:00:15]} 42. Bxg6 {[%clk 0:00:07]}  Nb5 {[%clk 0:00:16]} 43. Bd3 {[%clk 0:00:06]}  Nc3 {[%clk 0:00:16]} 44. Ra1 {[%clk 0:00:06]}  Bd5 {[%clk 0:00:16]} 45. Bc2 {[%clk 0:00:05]}  Nb5 {[%clk 0:00:12]} 46. Kf1 {[%clk 0:00:04]}  Na3 {[%clk 0:00:12]} 47. Bd1 {[%clk 0:00:05]}  d3 {[%clk 0:00:13]} 48. Ke1 {[%clk 0:00:05]}  Nc2+ {[%clk 0:00:09]} 49. Bxc2 {[%clk 0:00:05]}  dxc2 {[%clk 0:00:10]} 50. Kd2 {[%clk 0:00:05]}  Bxb3 {[%clk 0:00:10]} 51. Ra8+ {[%clk 0:00:05]}  Kf7 {[%clk 0:00:10]} 52. Rb8 {[%clk 0:00:06]}  Kg6 {[%clk 0:00:10]} 53. Rxb4 {[%clk 0:00:06]}  Bd5 {[%clk 0:00:10]} 54. Kxc2 {[%clk 0:00:06]}  Kf5 {[%clk 0:00:11]} 55. f4 {[%clk 0:00:06]}  Kg4 {[%clk 0:00:11]} 56. Kd2 {[%clk 0:00:06]}  Kxg3 {[%clk 0:00:12]} 57. Ke3 {[%clk 0:00:06]}  Kg4 {[%clk 0:00:12]} 58. Rb8 {[%clk 0:00:06]}  Kf5 {[%clk 0:00:12]} 59. Rg8 {[%clk 0:00:06]} 1-0


[Site "https://www.chess.com"]

[Event "Titled Tuesday Blitz December 13 Late 2022"]
[White "So, Wesley"]
[Black "Deac, Bogdan-Daniel"]
[WhiteFideId "5202213"]
[BlackFideId "1226380"]
[WhiteElo "2763"]
[BlackElo "2649"]
[Result "1/2-1/2"]
[Round "07"]
[TimeControl "180+1"]
[Date "2022.12.13"]
[WhiteClock "0:00:03"]
[BlackClock "0:00:03"]

1. e4 {[%clk 0:02:58]}  e5 {[%clk 0:02:59]} 2. Nf3 {[%clk 0:02:57]}  Nc6 {[%clk 0:03:00]} 3. Bc4 {[%clk 0:02:57]}  Bc5 {[%clk 0:02:59]} 4. c3 {[%clk 0:02:55]}  Nf6 {[%clk 0:03:00]} 5. d3 {[%clk 0:02:55]}  d6 {[%clk 0:03:00]} 6. O-O {[%clk 0:02:56]}  a5 {[%clk 0:03:01]} 7. Re1 {[%clk 0:02:55]}  O-O {[%clk 0:03:01]} 8. h3 {[%clk 0:02:55]}  h6 {[%clk 0:03:01]} 9. Nbd2 {[%clk 0:02:55]}  Be6 {[%clk 0:03:01]} 10. Bb5 {[%clk 0:02:56]}  Nd7 {[%clk 0:03:00]} 11. Nf1 {[%clk 0:02:55]}  d5 {[%clk 0:03:01]} 12. Be3 {[%clk 0:02:54]}  dxe4 {[%clk 0:03:01]} 13. dxe4 {[%clk 0:02:55]}  Qf6 {[%clk 0:03:01]} 14. Qe2 {[%clk 0:02:53]}  Rfd8 {[%clk 0:03:01]} 15. Red1 {[%clk 0:02:54]}  Bf8 {[%clk 0:03:01]} 16. Ng3 {[%clk 0:02:48]}  Nc5 {[%clk 0:02:54]} 17. Bxc6 {[%clk 0:01:56]}  Rxd1+ {[%clk 0:02:47]} 18. Rxd1 {[%clk 0:01:53]}  bxc6 {[%clk 0:02:47]} 19. Nh5 {[%clk 0:01:53]}  Qe7 {[%clk 0:02:47]} 20. Nxe5 {[%clk 0:01:48]}  Bxa2 {[%clk 0:02:39]} 21. Bd4 {[%clk 0:01:28]}  Ne6 {[%clk 0:02:14]} 22. Nxc6 {[%clk 0:01:17]}  Qe8 {[%clk 0:02:07]} 23. Ne5 {[%clk 0:01:04]}  Nxd4 {[%clk 0:01:50]} 24. cxd4 {[%clk 0:01:05]}  c5 {[%clk 0:01:50]} 25. Ng4 {[%clk 0:01:00]}  Kh8 {[%clk 0:01:38]} 26. d5 {[%clk 0:01:00]}  f5 {[%clk 0:01:38]} 27. Ne3 {[%clk 0:00:52]}  Qxe4 {[%clk 0:01:35]} 28. Ng3 {[%clk 0:00:50]}  Qe5 {[%clk 0:01:32]} 29. Ngxf5 {[%clk 0:00:48]}  Bb3 {[%clk 0:01:32]} 30. Rd2 {[%clk 0:00:45]}  c4 {[%clk 0:01:22]} 31. d6 {[%clk 0:00:44]}  a4 {[%clk 0:01:00]} 32. Nh4 {[%clk 0:00:27]}  Qe4 {[%clk 0:00:38]} 33. Qh5 {[%clk 0:00:21]}  c3 {[%clk 0:00:34]} 34. bxc3 {[%clk 0:00:22]}  a3 {[%clk 0:00:34]} 35. d7 {[%clk 0:00:20]}  a2 {[%clk 0:00:24]} 36. d8=Q {[%clk 0:00:17]}  Rxd8 {[%clk 0:00:21]} 37. Rxd8 {[%clk 0:00:18]}  a1=Q+ {[%clk 0:00:22]} 38. Nf1 {[%clk 0:00:17]}  Kh7 {[%clk 0:00:08]} 39. Rxf8 {[%clk 0:00:15]}  Bc4 {[%clk 0:00:08]} 40. Nf3 {[%clk 0:00:11]}  Qxf1+ {[%clk 0:00:05]} 41. Kh2 {[%clk 0:00:11]}  Qc1 {[%clk 0:00:05]} 42. h4 {[%clk 0:00:11]}  Bd5 {[%clk 0:00:04]} 43. Kh3 {[%clk 0:00:01]}  Be6+ {[%clk 0:00:04]} 44. Kh2 {[%clk 0:00:02]}  Bd5 {[%clk 0:00:04]} 45. Kh3 {[%clk 0:00:02]}  Qh1+ {[%clk 0:00:03]} 46. Kg3 {[%clk 0:00:02]}  Qc1 {[%clk 0:00:03]} 47. Kh3 {[%clk 0:00:03]} 1/2-1/2


[Site "https://www.chess.com"]

[Event "Titled Tuesday Blitz December 13 Late 2022"]
[White "Tang, Andrew"]
[Black "Maksimovic, Bojan"]
[WhiteFideId "2059630"]
[BlackFideId "14408120"]
[WhiteElo "2582"]
[BlackElo "2462"]
[Result "1-0"]
[Round "07"]
[TimeControl "180+1"]
[Date "2022.12.13"]
[WhiteClock "0:00:01"]
[BlackClock "0:00:01"]

1. d4 {[%clk 0:02:45]}  Nf6 {[%clk 0:02:59]} 2. c4 {[%clk 0:02:45]}  g6 {[%clk 0:02:59]} 3. f3 {[%clk 0:02:45]}  Bg7 {[%clk 0:02:58]} 4. e4 {[%clk 0:02:46]}  d6 {[%clk 0:02:58]} 5. Nc3 {[%clk 0:02:46]}  Nbd7 {[%clk 0:02:55]} 6. Nge2 {[%clk 0:02:47]}  O-O {[%clk 0:02:51]} 7. Bg5 {[%clk 0:02:47]}  h6 {[%clk 0:02:49]} 8. Be3 {[%clk 0:02:47]}  e5 {[%clk 0:02:49]} 9. d5 {[%clk 0:02:41]}  Nh5 {[%clk 0:02:42]} 10. Qd2 {[%clk 0:02:37]}  g5 {[%clk 0:02:34]} 11. g3 {[%clk 0:01:55]}  Ndf6 {[%clk 0:02:23]} 12. Bg2 {[%clk 0:01:53]}  a6 {[%clk 0:02:14]} 13. O-O {[%clk 0:01:49]}  Qe7 {[%clk 0:02:08]} 14. b4 {[%clk 0:01:48]}  Kh7 {[%clk 0:01:57]} 15. c5 {[%clk 0:01:44]}  Bd7 {[%clk 0:01:55]} 16. Rac1 {[%clk 0:01:41]}  Rg8 {[%clk 0:01:45]} 17. Rc2 {[%clk 0:01:41]}  Bf8 {[%clk 0:01:22]} 18. Rfc1 {[%clk 0:01:39]}  Nf4 {[%clk 0:01:19]} 19. gxf4 {[%clk 0:00:56]}  gxf4 {[%clk 0:01:18]} 20. cxd6 {[%clk 0:00:36]}  fxe3 {[%clk 0:01:08]} 21. dxe7 {[%clk 0:00:35]}  exd2 {[%clk 0:01:08]} 22. exf8=N+ {[%clk 0:00:34]}  Raxf8 {[%clk 0:00:40]} 23. Rxd2 {[%clk 0:00:33]}  Nh5 {[%clk 0:00:40]} 24. Nd1 {[%clk 0:00:30]}  c6 {[%clk 0:00:33]} 25. dxc6 {[%clk 0:00:22]}  Bxc6 {[%clk 0:00:34]} 26. Ne3 {[%clk 0:00:21]}  Rg5 {[%clk 0:00:28]} 27. Kf2 {[%clk 0:00:18]}  Rfg8 {[%clk 0:00:27]} 28. h4 {[%clk 0:00:18]}  R5g7 {[%clk 0:00:23]} 29. Bh3 {[%clk 0:00:18]}  Nf4 {[%clk 0:00:19]} 30. Bf5+ {[%clk 0:00:15]}  Kh8 {[%clk 0:00:18]} 31. Rg1 {[%clk 0:00:06]}  Rxg1 {[%clk 0:00:02]} 32. Nxg1 {[%clk 0:00:07]}  Bb5 {[%clk 0:00:02]} 33. Ng4 {[%clk 0:00:05]}  h5 {[%clk 0:00:01]} 34. Nxe5 {[%clk 0:00:01]} 1-0


[Site "https://www.chess.com"]

[Event "Titled Tuesday Blitz December 13 Late 2022"]
[White "Thiel, Thomas"]
[Black "Banzea, Alexandru-Bogdan"]
[WhiteFideId "4615964"]
[BlackFideId "1232622"]
[WhiteElo "2224"]
[BlackElo "2294"]
[Result "1-0"]
[Round "07"]
[TimeControl "180+1"]
[Date "2022.12.14"]
[WhiteClock "0:01:42"]
[BlackClock "0:01:18"]

1. e4 {[%clk 0:03:00]}  d5 {[%clk 0:02:58]} 2. exd5 {[%clk 0:02:59]}  c6 {[%clk 0:02:59]} 3. dxc6 {[%clk 0:02:58]}  Nxc6 {[%clk 0:02:59]} 4. Nf3 {[%clk 0:02:57]}  e5 {[%clk 0:03:00]} 5. d3 {[%clk 0:02:54]}  h6 {[%clk 0:02:59]} 6. Nc3 {[%clk 0:02:53]}  g5 {[%clk 0:02:59]} 7. Be2 {[%clk 0:02:49]}  Bg7 {[%clk 0:02:59]} 8. h4 {[%clk 0:02:46]}  g4 {[%clk 0:02:58]} 9. Nd2 {[%clk 0:02:46]}  f5 {[%clk 0:02:54]} 10. Nc4 {[%clk 0:02:38]}  Be6 {[%clk 0:02:48]} 11. Be3 {[%clk 0:02:36]}  Nge7 {[%clk 0:02:33]} 12. Bc5 {[%clk 0:02:29]}  Nc8 {[%clk 0:02:33]} 13. Qd2 {[%clk 0:02:19]}  b6 {[%clk 0:02:12]} 14. Ba3 {[%clk 0:02:14]}  Bxc4 {[%clk 0:01:56]} 15. dxc4 {[%clk 0:02:15]}  Qxd2+ {[%clk 0:01:54]} 16. Kxd2 {[%clk 0:02:16]}  h5 {[%clk 0:01:55]} 17. Rad1 {[%clk 0:02:12]}  Bh6+ {[%clk 0:01:55]} 18. Ke1 {[%clk 0:02:11]}  Nd4 {[%clk 0:01:54]} 19. Bd3 {[%clk 0:02:06]}  Kf7 {[%clk 0:01:43]} 20. c5 {[%clk 0:01:59]}  Rd8 {[%clk 0:01:29]} 21. Bxf5 {[%clk 0:01:43]}  Nxc2+ {[%clk 0:01:18]} 22. Bxc2 {[%clk 0:01:42]} 1-0


[Site "https://www.chess.com"]

[Event "Titled Tuesday Blitz December 13 Late 2022"]
[White "Toncheva, Nadya"]
[Black "Kanyamarala, Trisha"]
[WhiteFideId "2924056"]
[BlackFideId "45004722"]
[WhiteElo "2101"]
[BlackElo "2135"]
[Result "1-0"]
[Round "07"]
[TimeControl "180+1"]
[Date "2022.12.14"]
[WhiteClock "0:00:24"]
[BlackClock "0:00:01"]

1. e4 {[%clk 0:03:00]}  c5 {[%clk 0:02:58]} 2. c3 {[%clk 0:03:00]}  Nf6 {[%clk 0:02:54]} 3. e5 {[%clk 0:03:00]}  Nd5 {[%clk 0:02:51]} 4. Nf3 {[%clk 0:03:01]}  Nc6 {[%clk 0:02:49]} 5. Bc4 {[%clk 0:03:01]}  Nb6 {[%clk 0:02:43]} 6. Bb3 {[%clk 0:03:01]}  c4 {[%clk 0:02:43]} 7. Bc2 {[%clk 0:03:01]}  d5 {[%clk 0:02:40]} 8. exd6 {[%clk 0:03:02]}  Qxd6 {[%clk 0:02:39]} 9. O-O {[%clk 0:03:02]}  Bg4 {[%clk 0:02:39]} 10. Re1 {[%clk 0:02:59]}  e6 {[%clk 0:02:38]} 11. b3 {[%clk 0:02:51]}  cxb3 {[%clk 0:02:25]} 12. axb3 {[%clk 0:02:50]}  Be7 {[%clk 0:02:24]} 13. d4 {[%clk 0:02:49]}  O-O {[%clk 0:02:18]} 14. Nbd2 {[%clk 0:02:34]}  Nd5 {[%clk 0:01:48]} 15. Ne4 {[%clk 0:02:32]}  Qc7 {[%clk 0:01:43]} 16. Qd3 {[%clk 0:02:23]}  Bf5 {[%clk 0:01:35]} 17. Bd2 {[%clk 0:01:54]}  Rfd8 {[%clk 0:01:26]} 18. Qe2 {[%clk 0:01:51]}  Nf4 {[%clk 0:01:07]} 19. Bxf4 {[%clk 0:01:48]}  Qxf4 {[%clk 0:01:08]} 20. Ng3 {[%clk 0:01:44]}  Bxc2 {[%clk 0:01:05]} 21. Qxc2 {[%clk 0:01:44]}  Rac8 {[%clk 0:01:03]} 22. Qe4 {[%clk 0:01:43]}  Qxe4 {[%clk 0:00:59]} 23. Nxe4 {[%clk 0:01:44]}  a6 {[%clk 0:00:57]} 24. Red1 {[%clk 0:01:40]}  Nb8 {[%clk 0:00:51]} 25. c4 {[%clk 0:01:39]}  Nc6 {[%clk 0:00:46]} 26. Kf1 {[%clk 0:01:26]}  f5 {[%clk 0:00:43]} 27. Nc3 {[%clk 0:01:10]}  Bf6 {[%clk 0:00:41]} 28. Ne2 {[%clk 0:01:09]}  Rd7 {[%clk 0:00:35]} 29. Ra2 {[%clk 0:01:06]}  Rcd8 {[%clk 0:00:32]} 30. Rad2 {[%clk 0:01:06]}  Nb4 {[%clk 0:00:30]} 31. Nf4 {[%clk 0:01:02]}  Kf7 {[%clk 0:00:28]} 32. h4 {[%clk 0:00:58]}  b5 {[%clk 0:00:19]} 33. Re1 {[%clk 0:00:41]}  Re8 {[%clk 0:00:11]} 34. Rde2 {[%clk 0:00:33]}  Rde7 {[%clk 0:00:07]} 35. cxb5 {[%clk 0:00:30]}  axb5 {[%clk 0:00:07]} 36. Ne5+ {[%clk 0:00:31]}  Bxe5 {[%clk 0:00:07]} 37. Rxe5 {[%clk 0:00:31]}  Rb8 {[%clk 0:00:04]} 38. Nxe6 {[%clk 0:00:31]}  Kf6 {[%clk 0:00:04]} 39. Nf4 {[%clk 0:00:27]}  Rxe5 {[%clk 0:00:03]} 40. Rxe5 {[%clk 0:00:27]}  Nc6 {[%clk 0:00:02]} 41. Re6+ {[%clk 0:00:23]}  Kf7 {[%clk 0:00:01]} 42. Rxc6 {[%clk 0:00:24]} 1-0


[Site "https://www.chess.com"]

[Event "Titled Tuesday Blitz December 13 Late 2022"]
[White "Van Dael, Siem"]
[Black "Blanco Acevedo, Cristobal Jose"]
[WhiteFideId "1049771"]
[BlackFideId "3900525"]
[WhiteElo "2336"]
[BlackElo "2273"]
[Result "1-0"]
[Round "07"]
[TimeControl "180+1"]
[Date "2022.12.14"]
[WhiteClock "0:02:27"]
[BlackClock "0:00:10"]

1. e4 {[%clk 0:03:00]}  c5 {[%clk 0:02:59]} 2. Nf3 {[%clk 0:03:00]}  Nc6 {[%clk 0:02:59]} 3. d4 {[%clk 0:03:01]}  cxd4 {[%clk 0:02:59]} 4. Nxd4 {[%clk 0:03:02]}  Nf6 {[%clk 0:02:58]} 5. Nc3 {[%clk 0:03:02]}  e5 {[%clk 0:02:59]} 6. Ndb5 {[%clk 0:03:03]}  d6 {[%clk 0:02:59]} 7. Bg5 {[%clk 0:03:04]}  a6 {[%clk 0:02:59]} 8. Na3 {[%clk 0:03:04]}  b5 {[%clk 0:02:59]} 9. Bxf6 {[%clk 0:03:05]}  gxf6 {[%clk 0:02:59]} 10. Nd5 {[%clk 0:03:06]}  f5 {[%clk 0:02:58]} 11. Bxb5 {[%clk 0:03:07]}  axb5 {[%clk 0:02:57]} 12. Nxb5 {[%clk 0:03:07]}  Ra4 {[%clk 0:02:57]} 13. Nbc7+ {[%clk 0:03:08]}  Kd7 {[%clk 0:02:57]} 14. O-O {[%clk 0:03:09]}  Rxe4 {[%clk 0:02:34]} 15. Qh5 {[%clk 0:03:08]}  Ne7 {[%clk 0:02:00]} 16. Qxf7 {[%clk 0:03:08]}  Kc6 {[%clk 0:01:53]} 17. Rfd1 {[%clk 0:03:07]}  Nxd5 {[%clk 0:01:42]} 18. Nxd5 {[%clk 0:03:00]}  Qd7 {[%clk 0:01:29]} 19. Qh5 {[%clk 0:03:00]}  Rg8 {[%clk 0:01:07]} 20. Qf3 {[%clk 0:02:51]}  Qg7 {[%clk 0:00:53]} 21. g3 {[%clk 0:02:43]}  Qg4 {[%clk 0:00:50]} 22. Qc3+ {[%clk 0:02:40]}  Rc4 {[%clk 0:00:50]} 23. Qa5 {[%clk 0:02:39]}  Rg7 {[%clk 0:00:31]} 24. Qb6+ {[%clk 0:02:36]}  Kd7 {[%clk 0:00:32]} 25. Nf6+ {[%clk 0:02:37]}  Ke6 {[%clk 0:00:31]} 26. Nxg4 {[%clk 0:02:36]}  Rcxg4 {[%clk 0:00:31]} 27. Qd8 {[%clk 0:02:35]}  Bd7 {[%clk 0:00:31]} 28. Qxf8 {[%clk 0:02:35]}  h5 {[%clk 0:00:28]} 29. Rd5 {[%clk 0:02:35]}  Kxd5 {[%clk 0:00:27]} 30. Rd1+ {[%clk 0:02:34]}  Kc6 {[%clk 0:00:17]} 31. Qxd6+ {[%clk 0:02:32]}  Kb7 {[%clk 0:00:17]} 32. Rd3 {[%clk 0:02:27]}  Rd4 {[%clk 0:00:11]} 33. Rb3+ {[%clk 0:02:27]}  Ka7 {[%clk 0:00:11]} 34. Qb6+ {[%clk 0:02:26]}  Ka8 {[%clk 0:00:10]} 35. Qa6# {[%clk 0:02:27]} 1-0


[Site "https://www.chess.com"]

[Event "Titled Tuesday Blitz December 13 Late 2022"]
[White "Vasquez Schroeder, Rodrigo"]
[Black "Bluebaum, Matthias"]
[WhiteFideId "3400042"]
[BlackFideId "24651516"]
[WhiteElo "2603"]
[BlackElo "2634"]
[Result "1-0"]
[Round "07"]
[TimeControl "180+1"]
[Date "2022.12.13"]
[WhiteClock "0:00:45"]
[BlackClock "0:00:01"]

1. e4 {[%clk 0:03:00]}  e6 {[%clk 0:02:58]} 2. d4 {[%clk 0:03:00]}  d5 {[%clk 0:02:58]} 3. Nc3 {[%clk 0:03:00]}  Nf6 {[%clk 0:02:58]} 4. e5 {[%clk 0:03:01]}  Nfd7 {[%clk 0:02:59]} 5. Nce2 {[%clk 0:03:01]}  c5 {[%clk 0:02:59]} 6. c3 {[%clk 0:03:02]}  Nc6 {[%clk 0:03:00]} 7. f4 {[%clk 0:03:02]}  Be7 {[%clk 0:03:00]} 8. Nf3 {[%clk 0:03:02]}  a5 {[%clk 0:02:59]} 9. a4 {[%clk 0:02:58]}  f6 {[%clk 0:02:55]} 10. h4 {[%clk 0:02:55]}  O-O {[%clk 0:02:55]} 11. Neg1 {[%clk 0:02:50]}  Qb6 {[%clk 0:02:51]} 12. Bd3 {[%clk 0:02:37]}  f5 {[%clk 0:02:18]} 13. Ne2 {[%clk 0:02:34]}  cxd4 {[%clk 0:02:17]} 14. cxd4 {[%clk 0:02:33]}  Nb4 {[%clk 0:02:14]} 15. Bb1 {[%clk 0:02:31]}  Nb8 {[%clk 0:02:07]} 16. Nc3 {[%clk 0:02:30]}  Bd7 {[%clk 0:02:07]} 17. Rg1 {[%clk 0:02:16]}  Be8 {[%clk 0:02:03]} 18. g4 {[%clk 0:02:14]}  fxg4 {[%clk 0:02:04]} 19. Rxg4 {[%clk 0:02:08]}  Bh5 {[%clk 0:02:02]} 20. Ng5 {[%clk 0:01:58]}  Bxg5 {[%clk 0:02:00]} 21. hxg5 {[%clk 0:01:54]}  N8c6 {[%clk 0:01:19]} 22. Bxh7+ {[%clk 0:01:47]}  Kxh7 {[%clk 0:01:00]} 23. Rh4 {[%clk 0:01:47]}  g6 {[%clk 0:01:00]} 24. Rxh5+ {[%clk 0:01:47]}  gxh5 {[%clk 0:01:01]} 25. Qxh5+ {[%clk 0:01:47]}  Kg7 {[%clk 0:01:02]} 26. Qh6+ {[%clk 0:01:47]}  Kf7 {[%clk 0:01:02]} 27. Qf6+ {[%clk 0:01:48]}  Ke8 {[%clk 0:01:03]} 28. Qxe6+ {[%clk 0:01:48]}  Kd8 {[%clk 0:00:57]} 29. Qd6+ {[%clk 0:01:49]}  Ke8 {[%clk 0:00:58]} 30. Qe6+ {[%clk 0:01:49]}  Kd8 {[%clk 0:00:43]} 31. Qd6+ {[%clk 0:01:41]}  Kc8 {[%clk 0:00:43]} 32. Qxf8+ {[%clk 0:01:39]}  Qd8 {[%clk 0:00:43]} 33. Qxd8+ {[%clk 0:01:27]}  Kxd8 {[%clk 0:00:44]} 34. Kf2 {[%clk 0:01:25]}  Nxd4 {[%clk 0:00:42]} 35. Be3 {[%clk 0:01:14]}  Nd3+ {[%clk 0:00:40]} 36. Kg1 {[%clk 0:01:08]}  Nf5 {[%clk 0:00:19]} 37. Rd1 {[%clk 0:01:06]}  Nxb2 {[%clk 0:00:19]} 38. Rxd5+ {[%clk 0:01:06]}  Ke7 {[%clk 0:00:20]} 39. Bf2 {[%clk 0:01:03]}  Rc8 {[%clk 0:00:19]} 40. Rb5 {[%clk 0:01:00]}  Rxc3 {[%clk 0:00:12]} 41. Rxb2 {[%clk 0:01:00]}  Rc4 {[%clk 0:00:13]} 42. Rxb7+ {[%clk 0:00:59]}  Ke6 {[%clk 0:00:13]} 43. Rb6+ {[%clk 0:00:59]}  Ke7 {[%clk 0:00:14]} 44. Rf6 {[%clk 0:00:56]}  Rxf4 {[%clk 0:00:13]} 45. Bc5+ {[%clk 0:00:56]}  Ke8 {[%clk 0:00:08]} 46. e6 {[%clk 0:00:54]}  Rg4+ {[%clk 0:00:09]} 47. Kh2 {[%clk 0:00:50]}  Ne7 {[%clk 0:00:09]} 48. Rf7 {[%clk 0:00:49]}  Ng6 {[%clk 0:00:08]} 49. Rg7 {[%clk 0:00:47]}  Nf8 {[%clk 0:00:01]} 50. Rg8 {[%clk 0:00:45]} 1-0


[Site "https://www.chess.com"]